[Event "Early-Titled-Tuesday-Blitz-February-27-2024"]
[Site "Chess.com"]
[Date "2024.02.27"]
[Round "10"]
[White "VladimirBugayev"]
[Black "Schattman"]
[Result "0-1"]
[WhiteElo "2253"]
[BlackElo "2438"]
[TimeControl "180+1"]
[EndTime "9:54:05 PST"]
[Termination "Schattman won by resignation"]

1. e4 {[%clk 0:03:00.9]} 1... e6 {[%clk 0:02:59.6]} 2. d4 {[%clk 0:03:00.4]}
2... d5 {[%clk 0:02:59.8]} 3. Bd3 {[%clk 0:03:01.1]} 3... dxe4 {[%clk
0:02:59.2]} 4. Bxe4 {[%clk 0:03:02]} 4... Nf6 {[%clk 0:02:56.9]} 5. Bf3 {[%clk
0:03:02.4]} 5... c5 {[%clk 0:02:57]} 6. Ne2 {[%clk 0:03:01.9]} 6... Nc6 {[%clk
0:02:54.5]} 7. Be3 {[%clk 0:03:01.3]} 7... cxd4 {[%clk 0:02:45]} 8. Nxd4 {[%clk
0:02:59.9]} 8... Qa5+ {[%clk 0:02:34.6]} 9. Nc3 {[%clk 0:02:54.1]} 9... Bd7
{[%clk 0:02:29.2]} 10. O-O {[%clk 0:02:50.2]} 10... Rd8 {[%clk 0:02:29.2]} 11.
a3 {[%clk 0:02:35.1]} 11... Nxd4 {[%clk 0:02:19.8]} 12. Qxd4 {[%clk 0:02:34.3]}
12... Bc6 {[%clk 0:02:20.1]} 13. Qxa7 {[%clk 0:02:30.2]} 13... Qxa7 {[%clk
0:02:15.4]} 14. Bxc6+ {[%clk 0:02:29.8]} 14... bxc6 {[%clk 0:02:15.5]} 15. Bxa7
{[%clk 0:02:30.5]} 15... Ra8 {[%clk 0:02:03.8]} 16. Bd4 {[%clk 0:02:24.2]} 16...
c5 {[%clk 0:02:01.5]} 17. Bxf6 {[%clk 0:02:23.7]} 17... gxf6 {[%clk 0:02:01.8]}
18. Nb5 {[%clk 0:02:17.8]} 18... Kd7 {[%clk 0:01:56.7]} 19. c4 {[%clk
0:02:16.3]} 19... Kc6 {[%clk 0:01:51.6]} 20. a4 {[%clk 0:02:13.7]} 20... Bd6
{[%clk 0:01:47.4]} 21. f4 {[%clk 0:02:06.5]} 21... Rhd8 {[%clk 0:01:29.1]} 22.
b3 {[%clk 0:02:03.4]} 22... f5 {[%clk 0:01:23.8]} 23. g3 {[%clk 0:02:00]} 23...
Be7 {[%clk 0:01:19.4]} 24. Rfd1 {[%clk 0:01:59.6]} 24... Bf6 {[%clk 0:01:19.2]}
25. Rab1 {[%clk 0:01:56.1]} 25... h5 {[%clk 0:01:12.8]} 26. Kg2 {[%clk
0:01:53.6]} 26... h4 {[%clk 0:01:11.4]} 27. Kf3 {[%clk 0:01:52.7]} 27... Bd4
{[%clk 0:00:59.9]} 28. gxh4 {[%clk 0:01:40.4]} 28... Rh8 {[%clk 0:00:50.7]} 29.
Nxd4+ {[%clk 0:01:38.7]} 29... cxd4 {[%clk 0:00:50.6]} 30. Rxd4 {[%clk
0:01:29.1]} 30... Rxh4 {[%clk 0:00:47.6]} 31. b4 {[%clk 0:01:23.6]} 31... Rxa4
{[%clk 0:00:40.8]} 32. b5+ {[%clk 0:01:20.7]} 32... Kc5 {[%clk 0:00:34.9]} 33.
Kg3 {[%clk 0:01:14.3]} 33... Rg4+ {[%clk 0:00:32.7]} 34. Kf3 {[%clk 0:01:12]}
34... Kxd4 {[%clk 0:00:29.5]} 35. b6 {[%clk 0:01:12.9]} 35... Ra3+ {[%clk
0:00:20.5]} 36. Kf2 {[%clk 0:01:09.9]} 36... Rxf4+ {[%clk 0:00:19.4]} 37. Kg1
{[%clk 0:01:04]} 37... Rg4+ {[%clk 0:00:19.3]} 38. Kh1 {[%clk 0:01:04.4]} 38...
Rg8 {[%clk 0:00:19.2]} 39. b7 {[%clk 0:01:04]} 39... Rb8 {[%clk 0:00:19.1]} 0-1

[Event "Early-Titled-Tuesday-Blitz-February-27-2024"]
[Site "Chess.com"]
[Date "2024.02.27"]
[Round "10"]
[White "lagunanivaria"]
[Black "martinmena"]
[Result "1-0"]
[WhiteElo "2433"]
[BlackElo "2253"]
[TimeControl "180+1"]
[EndTime "9:54:07 PST"]
[Termination "lagunanivaria won by resignation"]

1. Nf3 {[%clk 0:03:00.9]} 1... d5 {[%clk 0:02:59.3]} 2. d4 {[%clk 0:03:00.7]}
2... Nf6 {[%clk 0:02:58.6]} 3. Bf4 {[%clk 0:03:00.7]} 3... e6 {[%clk 0:02:58.1]}
4. e3 {[%clk 0:03:00.3]} 4... Bd6 {[%clk 0:02:58.8]} 5. Bd3 {[%clk 0:03:00.1]}
5... Bxf4 {[%clk 0:02:56.7]} 6. exf4 {[%clk 0:03:00.3]} 6... O-O {[%clk
0:02:57.4]} 7. O-O {[%clk 0:03:00.4]} 7... c5 {[%clk 0:02:58]} 8. c3 {[%clk
0:03:00.6]} 8... cxd4 {[%clk 0:02:57.5]} 9. cxd4 {[%clk 0:03:00.7]} 9... Nc6
{[%clk 0:02:58.1]} 10. Nc3 {[%clk 0:03:00.6]} 10... Qb6 {[%clk 0:02:56.3]} 11.
Rb1 {[%clk 0:03:00.5]} 11... Kh8 {[%clk 0:02:53.8]} 12. Bb5 {[%clk 0:03:00.2]}
12... a6 {[%clk 0:02:52.7]} 13. Bxc6 {[%clk 0:03:00.1]} 13... bxc6 {[%clk
0:02:50.8]} 14. Na4 {[%clk 0:03:00.7]} 14... Qc7 {[%clk 0:02:51.2]} 15. g3
{[%clk 0:02:59.6]} 15... Ne4 {[%clk 0:02:50.5]} 16. Ne5 {[%clk 0:02:57.6]} 16...
f6 {[%clk 0:02:46.4]} 17. Nd3 {[%clk 0:02:57.1]} 17... Qa7 {[%clk 0:02:38.5]}
18. Nac5 {[%clk 0:02:56.7]} 18... Nxc5 {[%clk 0:02:34.6]} 19. dxc5 {[%clk
0:02:55.1]} 19... Qc7 {[%clk 0:02:27.3]} 20. Re1 {[%clk 0:02:53]} 20... Bd7
{[%clk 0:02:26.4]} 21. h4 {[%clk 0:02:48.5]} 21... Rae8 {[%clk 0:02:26.2]} 22.
Qe2 {[%clk 0:02:45.2]} 22... Re7 {[%clk 0:02:11.4]} 23. Nb4 {[%clk 0:02:37.8]}
23... a5 {[%clk 0:02:11.3]} 24. Nc2 {[%clk 0:02:30.9]} 24... e5 {[%clk
0:02:11.2]} 25. Qd2 {[%clk 0:02:29.5]} 25... Bf5 {[%clk 0:02:11]} 26. Rbc1
{[%clk 0:02:28.2]} 26... Rb8 {[%clk 0:01:58.7]} 27. Ne3 {[%clk 0:02:25.9]} 27...
Bg6 {[%clk 0:01:49.4]} 28. fxe5 {[%clk 0:02:24.2]} 28... fxe5 {[%clk 0:01:47.8]}
29. b3 {[%clk 0:02:24.7]} 29... e4 {[%clk 0:01:35.8]} 30. Ng2 {[%clk 0:02:24.2]}
30... Rf8 {[%clk 0:01:20.9]} 31. Nf4 {[%clk 0:02:22.2]} 31... Bf5 {[%clk
0:01:17.5]} 32. Qd4 {[%clk 0:02:20]} 32... Qe5 {[%clk 0:01:13.7]} 33. Qxe5
{[%clk 0:02:19.6]} 33... Rxe5 {[%clk 0:01:14.6]} 34. Ne2 {[%clk 0:02:18.2]}
34... e3 {[%clk 0:00:59.3]} 35. Nd4 {[%clk 0:02:12.1]} 35... exf2+ {[%clk
0:00:58.7]} 36. Kxf2 {[%clk 0:02:13]} 36... Re4 {[%clk 0:00:39.9]} 37. Rxe4
{[%clk 0:02:10.7]} 37... Bxe4+ {[%clk 0:00:39.4]} 38. Kg1 {[%clk 0:02:04.5]}
38... Rc8 {[%clk 0:00:22.7]} 39. Rf1 {[%clk 0:02:02.3]} 39... Kg8 {[%clk
0:00:22.5]} 40. Rf2 {[%clk 0:01:57.4]} 40... a4 {[%clk 0:00:11.9]} 41. bxa4
{[%clk 0:01:56.6]} 41... g6 {[%clk 0:00:09.3]} 42. a5 {[%clk 0:01:56]} 42... Bf5
{[%clk 0:00:07.6]} 43. Rb2 {[%clk 0:01:54.6]} 43... Ra8 {[%clk 0:00:06.7]} 44.
Nxc6 {[%clk 0:01:54.5]} 44... Bd7 {[%clk 0:00:06]} 45. Rb8+ {[%clk 0:01:54.2]}
45... Rxb8 {[%clk 0:00:04]} 46. Nxb8 {[%clk 0:01:55.1]} 46... Kg7 {[%clk
0:00:02.8]} 47. a6 {[%clk 0:01:54.7]} 47... Bc8 {[%clk 0:00:02.3]} 48. a7 {[%clk
0:01:52.6]} 48... Bb7 {[%clk 0:00:02.8]} 49. c6 {[%clk 0:01:53.2]} 49... Ba8
{[%clk 0:00:03.4]} 50. c7 {[%clk 0:01:53.4]} 50... Bb7 {[%clk 0:00:04.1]} 51.
a8=Q {[%clk 0:01:53.6]} 51... Bxa8 {[%clk 0:00:04.2]} 52. c8=Q {[%clk
0:01:54.5]} 52... Bb7 {[%clk 0:00:05.1]} 53. Qxb7+ {[%clk 0:01:54.7]} 1-0

[Event "Early-Titled-Tuesday-Blitz-February-27-2024"]
[Site "Chess.com"]
[Date "2024.02.27"]
[Round "10"]
[White "ChessSwole"]
[Black "ReinisUz"]
[Result "1-0"]
[WhiteElo "2700"]
[BlackElo "2424"]
[TimeControl "180+1"]
[EndTime "9:54:11 PST"]
[Termination "ChessSwole won by resignation"]

1. e4 {[%clk 0:03:00.9]} 1... c5 {[%clk 0:02:56.7]} 2. c3 {[%clk 0:03:00.2]}
2... Nf6 {[%clk 0:02:49.4]} 3. e5 {[%clk 0:03:00]} 3... Nd5 {[%clk 0:02:49.7]}
4. d4 {[%clk 0:03:00.7]} 4... cxd4 {[%clk 0:02:50]} 5. Qxd4 {[%clk 0:03:01.4]}
5... Nc7 {[%clk 0:02:42.9]} 6. Nf3 {[%clk 0:03:00.2]} 6... Nc6 {[%clk
0:02:43.1]} 7. Qe4 {[%clk 0:02:56.8]} 7... d6 {[%clk 0:02:42.5]} 8. exd6 {[%clk
0:02:53.2]} 8... Qxd6 {[%clk 0:02:43.4]} 9. Be2 {[%clk 0:02:48.7]} 9... g6
{[%clk 0:02:31.1]} 10. O-O {[%clk 0:02:37.6]} 10... Bg7 {[%clk 0:02:31]} 11. Qh4
{[%clk 0:02:34.3]} 11... O-O {[%clk 0:02:26.2]} 12. Bf4 {[%clk 0:02:32.2]} 12...
e5 {[%clk 0:02:17.3]} 13. Rd1 {[%clk 0:02:31.4]} 13... Qc5 {[%clk 0:01:41]} 14.
Be3 {[%clk 0:02:26.7]} 14... Qe7 {[%clk 0:01:33.6]} 15. Qxe7 {[%clk 0:02:24.2]}
15... Nxe7 {[%clk 0:01:34.5]} 16. Bc5 {[%clk 0:02:24.5]} 16... Re8 {[%clk
0:01:30.8]} 17. Bd6 {[%clk 0:02:16.2]} 17... Ned5 {[%clk 0:00:59.8]} 18. Bc4
{[%clk 0:01:57.9]} 18... Be6 {[%clk 0:00:42.4]} 19. Bxe5 {[%clk 0:01:31.9]}
19... Bxe5 {[%clk 0:00:39.6]} 20. Nxe5 {[%clk 0:01:31.8]} 20... Rad8 {[%clk
0:00:19.7]} 21. Na3 {[%clk 0:01:24.4]} 21... Kg7 {[%clk 0:00:19.5]} 22. Re1
{[%clk 0:01:15.3]} 22... f6 {[%clk 0:00:17.3]} 23. Nf3 {[%clk 0:01:10.2]} 23...
Bf7 {[%clk 0:00:17.6]} 24. Rad1 {[%clk 0:01:03.6]} 24... a6 {[%clk 0:00:17.4]}
25. Bb3 {[%clk 0:01:02.9]} 25... b5 {[%clk 0:00:17]} 26. Nc2 {[%clk 0:01:01]}
26... Rxe1+ {[%clk 0:00:16.3]} 27. Nfxe1 {[%clk 0:00:56.2]} 27... Re8 {[%clk
0:00:15.1]} 28. Kf1 {[%clk 0:00:54.9]} 28... Re7 {[%clk 0:00:15.4]} 29. Nf3
{[%clk 0:00:53.1]} 29... g5 {[%clk 0:00:15.4]} 30. Ncd4 {[%clk 0:00:51.5]} 30...
Kg6 {[%clk 0:00:14.7]} 31. Bc2+ {[%clk 0:00:50.8]} 31... Kg7 {[%clk 0:00:13.5]}
32. Nf5+ {[%clk 0:00:50.5]} 1-0

[Event "Early-Titled-Tuesday-Blitz-February-27-2024"]
[Site "Chess.com"]
[Date "2024.02.27"]
[Round "10"]
[White "SharapovEvgeny"]
[Black "Kazancev_Valerij_M"]
[Result "1-0"]
[WhiteElo "2517"]
[BlackElo "2405"]
[TimeControl "180+1"]
[EndTime "9:54:14 PST"]
[Termination "SharapovEvgeny won on time"]

1. e4 {[%clk 0:03:00.1]} 1... g6 {[%clk 0:02:55.4]} 2. d4 {[%clk 0:02:59.7]}
2... Bg7 {[%clk 0:02:54.9]} 3. Nc3 {[%clk 0:02:59.6]} 3... e6 {[%clk 0:02:54.5]}
4. h4 {[%clk 0:02:59.1]} 4... h5 {[%clk 0:02:45.8]} 5. Nf3 {[%clk 0:02:58.3]}
5... Ne7 {[%clk 0:02:46.1]} 6. Ng5 {[%clk 0:02:58.2]} 6... a6 {[%clk 0:02:41.1]}
7. Be3 {[%clk 0:02:57.8]} 7... d5 {[%clk 0:02:38.6]} 8. f3 {[%clk 0:02:56.7]}
8... b5 {[%clk 0:02:31]} 9. Qd2 {[%clk 0:02:53.3]} 9... Nd7 {[%clk 0:02:27.2]}
10. exd5 {[%clk 0:02:47.9]} 10... exd5 {[%clk 0:02:24.6]} 11. Bd3 {[%clk
0:02:46.8]} 11... Nb6 {[%clk 0:02:18.7]} 12. b3 {[%clk 0:02:46.1]} 12... Nf5
{[%clk 0:02:16.6]} 13. Bxf5 {[%clk 0:02:44]} 13... Bxf5 {[%clk 0:02:16.4]} 14.
O-O-O {[%clk 0:02:40.5]} 14... Qd7 {[%clk 0:02:07.3]} 15. Rhe1 {[%clk
0:02:38.7]} 15... O-O-O {[%clk 0:02:06.9]} 16. Bf4 {[%clk 0:02:36.7]} 16... f6
{[%clk 0:01:38]} 17. Nh3 {[%clk 0:02:36.1]} 17... Bxh3 {[%clk 0:01:37.4]} 18.
gxh3 {[%clk 0:02:36.2]} 18... Qxh3 {[%clk 0:01:38.2]} 19. Re7 {[%clk 0:02:32.5]}
19... Rd7 {[%clk 0:01:37.3]} 20. Rxd7 {[%clk 0:02:31]} 20... Qxd7 {[%clk
0:01:34.4]} 21. Rg1 {[%clk 0:02:28.6]} 21... Qf5 {[%clk 0:01:34]} 22. Qh2 {[%clk
0:02:27.8]} 22... Bh6 {[%clk 0:01:21.2]} 23. Bxh6 {[%clk 0:02:26.6]} 23... Rxh6
{[%clk 0:01:22.1]} 24. Qg3 {[%clk 0:02:25.8]} 24... Kd7 {[%clk 0:01:15.9]} 25.
Nd1 {[%clk 0:02:24.3]} 25... g5 {[%clk 0:01:02.9]} 26. hxg5 {[%clk 0:02:22.6]}
26... Qxg5+ {[%clk 0:01:02]} 27. Qxg5 {[%clk 0:02:22.8]} 27... fxg5 {[%clk
0:01:02.5]} 28. Rxg5 {[%clk 0:02:23.4]} 28... h4 {[%clk 0:01:01.8]} 29. Rg2
{[%clk 0:02:23.3]} 29... Nc8 {[%clk 0:01:00]} 30. Nf2 {[%clk 0:02:21.8]} 30...
Nd6 {[%clk 0:00:58.8]} 31. Ng4 {[%clk 0:02:22.1]} 31... Rh8 {[%clk 0:00:47.3]}
32. Ne5+ {[%clk 0:02:21.6]} 32... Ke6 {[%clk 0:00:47]} 33. Ng6 {[%clk
0:02:19.6]} 33... Rh6 {[%clk 0:00:42.6]} 34. Nf4+ {[%clk 0:02:16.8]} 34... Kf5
{[%clk 0:00:40.6]} 35. Nxd5 {[%clk 0:02:16.7]} 35... h3 {[%clk 0:00:38.9]} 36.
Rh2 {[%clk 0:02:16.7]} 36... c6 {[%clk 0:00:33.4]} 37. Ne3+ {[%clk 0:02:11]}
37... Kf4 {[%clk 0:00:31.7]} 38. Ng4 {[%clk 0:02:11.2]} 38... Rh8 {[%clk
0:00:27.1]} 39. Kd2 {[%clk 0:02:10.5]} 39... Nf5 {[%clk 0:00:24.7]} 40. Nf2
{[%clk 0:02:05.8]} 40... Kg3 {[%clk 0:00:22.4]} 41. Rxh3+ {[%clk 0:02:06]} 41...
Rxh3 {[%clk 0:00:21.7]} 42. Nxh3 {[%clk 0:02:06.6]} 42... Kxh3 {[%clk
0:00:21.6]} 43. Kd3 {[%clk 0:02:07.2]} 43... Nd6 {[%clk 0:00:09.4]} 44. d5
{[%clk 0:02:02.8]} 44... c5 {[%clk 0:00:09.1]} 45. b4 {[%clk 0:02:01.3]} 45...
cxb4 {[%clk 0:00:08.2]} 46. Kd4 {[%clk 0:02:01.8]} 46... Nb7 {[%clk 0:00:05.7]}
47. Ke5 {[%clk 0:02:01.2]} 47... a5 {[%clk 0:00:05.5]} 48. f4 {[%clk 0:01:59.2]}
48... Kg4 {[%clk 0:00:03.9]} 49. f5 {[%clk 0:01:59.7]} 49... Kg5 {[%clk
0:00:02.9]} 50. f6 {[%clk 0:02:00.3]} 1-0

[Event "Early-Titled-Tuesday-Blitz-February-27-2024"]
[Site "Chess.com"]
[Date "2024.02.27"]
[Round "10"]
[White "toninhojit"]
[Black "djano"]
[Result "1-0"]
[WhiteElo "2472"]
[BlackElo "2577"]
[TimeControl "180+1"]
[EndTime "9:54:19 PST"]
[Termination "toninhojit won by resignation"]

1. d4 {[%clk 0:03:00.9]} 1... g6 {[%clk 0:02:59.9]} 2. c4 {[%clk 0:03:01.1]}
2... Bg7 {[%clk 0:03:00.3]} 3. e4 {[%clk 0:03:01.9]} 3... d6 {[%clk 0:03:00.6]}
4. Nc3 {[%clk 0:03:02.3]} 4... Nf6 {[%clk 0:03:01.2]} 5. Be2 {[%clk 0:03:02.4]}
5... O-O {[%clk 0:03:01.1]} 6. Bg5 {[%clk 0:03:03.1]} 6... c5 {[%clk 0:03:00]}
7. d5 {[%clk 0:03:03.4]} 7... h6 {[%clk 0:02:59.8]} 8. Be3 {[%clk 0:03:02.8]}
8... e6 {[%clk 0:02:59]} 9. Qd2 {[%clk 0:03:03.1]} 9... exd5 {[%clk 0:02:57.2]}
10. exd5 {[%clk 0:03:04]} 10... Kh7 {[%clk 0:02:49]} 11. Nf3 {[%clk 0:03:04.3]}
11... Ng4 {[%clk 0:02:48]} 12. Bf4 {[%clk 0:03:03.4]} 12... b5 {[%clk
0:02:44.2]} 13. cxb5 {[%clk 0:03:02.4]} 13... a6 {[%clk 0:02:43.2]} 14. bxa6
{[%clk 0:03:02.4]} 14... Bxa6 {[%clk 0:02:41.9]} 15. Bxa6 {[%clk 0:03:01.2]}
15... Nxa6 {[%clk 0:02:41.1]} 16. O-O {[%clk 0:03:01.2]} 16... Rb8 {[%clk
0:02:33.6]} 17. Rfe1 {[%clk 0:03:01]} 17... Qb6 {[%clk 0:02:31.2]} 18. Rab1
{[%clk 0:02:58.3]} 18... Qb4 {[%clk 0:02:26.2]} 19. Bxd6 {[%clk 0:02:53.6]}
19... Rfd8 {[%clk 0:02:22.4]} 20. Bxb8 {[%clk 0:02:53.5]} 20... Qxb8 {[%clk
0:02:19.6]} 21. h3 {[%clk 0:02:51.5]} 21... Nf6 {[%clk 0:02:18.8]} 22. a3 {[%clk
0:02:42.5]} 22... Nc7 {[%clk 0:02:17.4]} 23. d6 {[%clk 0:02:39.7]} 23... Ne6
{[%clk 0:02:17.8]} 24. Rbd1 {[%clk 0:02:37.1]} 24... Nh5 {[%clk 0:02:16.1]} 25.
d7 {[%clk 0:02:20]} 25... Nd4 {[%clk 0:02:13.5]} 26. Nxd4 {[%clk 0:02:08.8]}
26... cxd4 {[%clk 0:02:13.4]} 27. Ne2 {[%clk 0:02:06.6]} 27... Rxd7 {[%clk
0:02:12.9]} 28. Nc1 {[%clk 0:01:55.2]} 28... Nf4 {[%clk 0:02:06.2]} 29. Nd3
{[%clk 0:01:52.2]} 29... Ne6 {[%clk 0:02:02.4]} 30. b4 {[%clk 0:01:50.5]} 30...
h5 {[%clk 0:02:01]} 31. a4 {[%clk 0:01:47.7]} 31... Bh6 {[%clk 0:01:57.1]} 32.
Qb2 {[%clk 0:01:47.9]} 32... Rc7 {[%clk 0:01:50.5]} 33. b5 {[%clk 0:01:46.3]}
33... Ra7 {[%clk 0:01:23.8]} 34. Qb3 {[%clk 0:01:34.5]} 34... g5 {[%clk
0:01:09.3]} 35. b6 {[%clk 0:01:29.3]} 35... Rb7 {[%clk 0:01:09.6]} 36. a5 {[%clk
0:01:28.8]} 36... g4 {[%clk 0:01:10.3]} 37. hxg4 {[%clk 0:01:27.5]} 37... hxg4
{[%clk 0:01:11.2]} 38. Rb1 {[%clk 0:01:27]} 38... g3 {[%clk 0:01:10.4]} 39. a6
{[%clk 0:01:22.4]} 39... gxf2+ {[%clk 0:01:02.1]} 40. Nxf2 {[%clk 0:01:23.3]}
40... Re7 {[%clk 0:01:00.5]} 41. Qd5 {[%clk 0:01:16.9]} 41... Be3 {[%clk
0:00:52.1]} 42. a7 {[%clk 0:01:11.5]} 42... Rxa7 {[%clk 0:00:36]} 43. bxa7
{[%clk 0:01:07.6]} 43... Qxa7 {[%clk 0:00:36.9]} 44. Rb7 {[%clk 0:00:54.4]}
44... Bxf2+ {[%clk 0:00:30.9]} 45. Kxf2 {[%clk 0:00:55.3]} 45... Qa2+ {[%clk
0:00:31.1]} 46. Qxa2 {[%clk 0:00:55]} 1-0

[Event "Early-Titled-Tuesday-Blitz-February-27-2024"]
[Site "Chess.com"]
[Date "2024.02.27"]
[Round "10"]
[White "ClauSanLuis"]
[Black "maroro07"]
[Result "1-0"]
[WhiteElo "2335"]
[BlackElo "2405"]
[TimeControl "180+1"]
[EndTime "9:54:22 PST"]
[Termination "ClauSanLuis won by resignation"]

1. d4 {[%clk 0:03:00.9]} 1... Nf6 {[%clk 0:02:56.9]} 2. Bg5 {[%clk 0:03:00]}
2... d5 {[%clk 0:02:52.3]} 3. Bxf6 {[%clk 0:02:59.7]} 3... gxf6 {[%clk
0:02:48.2]} 4. e3 {[%clk 0:03:00]} 4... e5 {[%clk 0:02:45.4]} 5. Ne2 {[%clk
0:02:52.5]} 5... Be6 {[%clk 0:02:41.2]} 6. Ng3 {[%clk 0:02:51.8]} 6... Nd7
{[%clk 0:02:40.8]} 7. c3 {[%clk 0:02:51.3]} 7... c6 {[%clk 0:02:38.8]} 8. Nd2
{[%clk 0:02:49.6]} 8... Qb6 {[%clk 0:02:38.1]} 9. Qb3 {[%clk 0:02:46.8]} 9...
Bh6 {[%clk 0:02:35]} 10. Nf3 {[%clk 0:02:45.7]} 10... a5 {[%clk 0:02:12.8]} 11.
Bd3 {[%clk 0:02:23.7]} 11... e4 {[%clk 0:02:11.2]} 12. Qxb6 {[%clk 0:02:19.3]}
12... Nxb6 {[%clk 0:02:10.5]} 13. Bxe4 {[%clk 0:02:18.6]} 13... dxe4 {[%clk
0:02:10.2]} 14. Nxe4 {[%clk 0:02:19.5]} 14... Ke7 {[%clk 0:02:08.3]} 15. Nc5
{[%clk 0:02:18.4]} 15... Nc4 {[%clk 0:02:03.2]} 16. b3 {[%clk 0:02:16.2]} 16...
Nd6 {[%clk 0:01:58.6]} 17. Na4 {[%clk 0:02:12.9]} 17... Rhg8 {[%clk 0:01:52.9]}
18. Rg1 {[%clk 0:02:05.1]} 18... Bd5 {[%clk 0:01:51]} 19. Ke2 {[%clk 0:01:55]}
19... b5 {[%clk 0:01:26.7]} 20. Nc5 {[%clk 0:01:50.3]} 20... Ne4 {[%clk
0:01:21.4]} 21. Rac1 {[%clk 0:01:48.2]} 21... Nxc5 {[%clk 0:01:19.6]} 22. dxc5
{[%clk 0:01:49.1]} 22... a4 {[%clk 0:01:11.9]} 23. Nd4 {[%clk 0:01:48.9]} 23...
Bf8 {[%clk 0:00:46.3]} 24. c4 {[%clk 0:01:36.2]} 24... bxc4 {[%clk 0:00:41.6]}
25. bxc4 {[%clk 0:01:35.8]} 25... Bxg2 {[%clk 0:00:40.7]} 26. Nf5+ {[%clk
0:01:28.7]} 26... Ke6 {[%clk 0:00:34.3]} 27. Nh4 {[%clk 0:01:29.3]} 27... Bxc5
{[%clk 0:00:26.6]} 28. Nxg2 {[%clk 0:01:29.1]} 28... Rab8 {[%clk 0:00:25.9]} 29.
Nf4+ {[%clk 0:01:29]} 29... Ke7 {[%clk 0:00:23.5]} 30. Rxg8 {[%clk 0:01:27.8]}
30... Rxg8 {[%clk 0:00:24.2]} 31. Rb1 {[%clk 0:01:26.6]} 31... Bd6 {[%clk
0:00:21.2]} 32. Rb7+ {[%clk 0:01:24.9]} 32... Kf8 {[%clk 0:00:20.4]} 33. Nh5
{[%clk 0:01:23.3]} 33... Rg5 {[%clk 0:00:15.9]} 34. Nxf6 {[%clk 0:01:18.3]}
34... Rg2 {[%clk 0:00:12.2]} 35. h4 {[%clk 0:01:06.3]} 35... Rh2 {[%clk
0:00:10.9]} 36. h5 {[%clk 0:01:05.8]} 36... Bg3 {[%clk 0:00:10]} 37. Ng4 {[%clk
0:01:03.5]} 37... Bh4 {[%clk 0:00:08]} 38. Nxh2 {[%clk 0:01:02.7]} 1-0

[Event "Early-Titled-Tuesday-Blitz-February-27-2024"]
[Site "Chess.com"]
[Date "2024.02.27"]
[Round "10"]
[White "OneTrickPony_82"]
[Black "ArtemDyachuk"]
[Result "0-1"]
[WhiteElo "2539"]
[BlackElo "2695"]
[TimeControl "180+1"]
[EndTime "9:54:28 PST"]
[Termination "ArtemDyachuk won by resignation"]

1. d4 {[%clk 0:03:00.9]} 1... Nf6 {[%clk 0:02:57]} 2. c4 {[%clk 0:03:01.3]} 2...
e6 {[%clk 0:02:56.7]} 3. Nf3 {[%clk 0:03:01.6]} 3... c5 {[%clk 0:02:56.1]} 4. d5
{[%clk 0:03:01.5]} 4... d6 {[%clk 0:02:56.1]} 5. Nc3 {[%clk 0:03:01.1]} 5...
exd5 {[%clk 0:02:56.3]} 6. cxd5 {[%clk 0:03:00.9]} 6... g6 {[%clk 0:02:56.1]} 7.
Bf4 {[%clk 0:03:01.4]} 7... Bg7 {[%clk 0:02:55.9]} 8. e3 {[%clk 0:03:00.3]} 8...
O-O {[%clk 0:02:54.9]} 9. h3 {[%clk 0:02:59.7]} 9... Ne8 {[%clk 0:02:50]} 10.
Bd3 {[%clk 0:02:57.5]} 10... Nd7 {[%clk 0:02:50.2]} 11. O-O {[%clk 0:02:57.1]}
11... Ne5 {[%clk 0:02:50.6]} 12. Bxe5 {[%clk 0:02:52.6]} 12... dxe5 {[%clk
0:02:50.4]} 13. e4 {[%clk 0:02:50.9]} 13... Nd6 {[%clk 0:02:47.5]} 14. Nb5
{[%clk 0:02:40.7]} 14... a6 {[%clk 0:02:37.1]} 15. Nxd6 {[%clk 0:02:39.9]} 15...
Qxd6 {[%clk 0:02:38]} 16. a4 {[%clk 0:02:39.7]} 16... b6 {[%clk 0:02:36.6]} 17.
Qe2 {[%clk 0:02:35.9]} 17... h6 {[%clk 0:02:32.8]} 18. Rfc1 {[%clk 0:02:25.8]}
18... Bb7 {[%clk 0:02:31]} 19. Rab1 {[%clk 0:02:24.6]} 19... Rfc8 {[%clk
0:02:29.9]} 20. Nd2 {[%clk 0:02:18.7]} 20... h5 {[%clk 0:02:25.6]} 21. Nc4
{[%clk 0:02:17.9]} 21... Qd8 {[%clk 0:02:24.6]} 22. b4 {[%clk 0:02:05.1]} 22...
cxb4 {[%clk 0:02:14.9]} 23. Rxb4 {[%clk 0:02:04.2]} 23... Bf8 {[%clk 0:02:01.4]}
24. Rbb1 {[%clk 0:01:54.8]} 24... Qg5 {[%clk 0:02:00.1]} 25. h4 {[%clk
0:01:34.7]} 25... Qxh4 {[%clk 0:01:57]} 26. Nxb6 {[%clk 0:01:33.5]} 26... Rxc1+
{[%clk 0:01:56]} 27. Rxc1 {[%clk 0:01:34]} 27... Rb8 {[%clk 0:01:52.2]} 28. Nd7
{[%clk 0:01:32.6]} 28... Bh6 {[%clk 0:01:42.4]} 29. Rb1 {[%clk 0:01:11.3]} 29...
Rc8 {[%clk 0:01:30.7]} 30. Nxe5 {[%clk 0:01:10.7]} 30... Qe7 {[%clk 0:01:27.9]}
31. Nf3 {[%clk 0:01:06.1]} 31... Rd8 {[%clk 0:01:24.3]} 32. Bxa6 {[%clk
0:00:59.2]} 32... Bxa6 {[%clk 0:01:25.2]} 33. Qxa6 {[%clk 0:00:59.3]} 33... Qxe4
{[%clk 0:01:24.5]} 34. Rd1 {[%clk 0:00:51.7]} 34... Bf8 {[%clk 0:01:15.9]} 35.
d6 {[%clk 0:00:48.9]} 35... Qe6 {[%clk 0:01:08.8]} 36. Ng5 {[%clk 0:00:33.7]}
36... Qg4 {[%clk 0:01:05.1]} 37. Nf3 {[%clk 0:00:22]} 37... Qe6 {[%clk 0:00:58]}
38. a5 {[%clk 0:00:21.6]} 38... Bxd6 {[%clk 0:00:56.3]} 39. Qb6 {[%clk
0:00:21.4]} 39... Bh2+ {[%clk 0:00:55.5]} 40. Kxh2 {[%clk 0:00:21.2]} 40... Qxb6
{[%clk 0:00:55.2]} 41. axb6 {[%clk 0:00:20.8]} 41... Rxd1 {[%clk 0:00:55.7]} 0-1